bitfinex/quotes_ETHUSD_20250602
["timestamp","ask_amount","ask_price","bid_price","bid_amount"]
[1748885788163,0.809,2540.2,2539.2,0.8286]
[1748885788365,0.809,2540.2,2540.0,3.93698584]
[1748885788564,8.0,2540.4,2540.0,3.93700373]
[1748885788775,0.02961008,2540.3,2540.0,3.93698326]
[1748885788957,0.02961008,2540.3,2539.9,3.93707429]
[1748885789482,14.72258792,2540.5,2540.0,3.93700086]
[1748885789483,10.78635268,2540.5,2540.0,3.93700086]
[1748885789791,12.25860325,2540.5,2539.9,3.93708261]
[1748885790077,0.02961008,2540.4,2540.2,3.93667779]
[1748885790277,1.16707321,2540.5,2540.1,3.95678544]
[1748885790966,0.02961008,2540.4,2540.1,0.02]
[1748885791278,9.46925268,2540.2,2540.1,0.02]
[1748885791455,10.63632589,2540.5,2540.1,0.02]
[1748885791650,1.90255948,2540.4,2540.1,3.95685118]
[1748885791855,10.63632589,2540.5,2540.1,0.02]
[1748885792152,0.02961008,2540.4,2540.1,3.95677429]
[1748885792361,10.63632589,2540.5,2540.2,3.9366952]
[1748885792747,9.86922589,2540.5,2540.1,0.02]
[1748885793276,9.86922589,2540.5,2540.2,3.93658347]
[1748885794143,9.86922589,2540.5,2540.1,3.95676879]
[1748885794457,9.86922589,2540.5,2540.1,3.95677486]
[1748885794654,9.86922589,2540.5,2540.1,3.95684741]
[1748885794866,0.39997321,2540.5,2540.2,3.93658465]
[1748885795073,0.02961008,2540.6,2540.1,3.95677186]
[1748885795274,0.94175718,2540.6,2540.1,3.95677186]
[1748885795587,4.87783601,2540.6,2540.1,3.95677186]
[1748885796437,0.94175718,2540.6,2540.3,3.9365098]
[1748885796547,0.8068,2540.8,2540.1,0.05936376]
[1748885796747,0.8068,2540.8,2540.3,3.93640167]
[1748885796748,4.77220486,2540.8,2540.3,3.93640167]
[1748885798274,3.93615125,2540.6,2540.1,8.10679226]
[1748885798480,3.96576133,2540.6,2540.1,8.10679226]
[1748885798680,0.02961008,2540.6,2540.2,3.93667745]
[1748885800102,9.46925268,2540.4,2540.1,0.02]
[1748885800311,9.46925268,2540.4,2540.2,3.93668704]
[1748885800478,9.46925268,2540.4,2540.1,0.02]
[1748885800681,9.46925268,2540.4,2540.1,3.95680464]
[1748885800989,9.46925268,2540.4,2540.2,3.93668851]
[1748885801240,9.46925268,2540.4,2540.1,3.95676235]
[1748885801391,9.46925268,2540.4,2540.1,0.02]
[1748885801684,9.46925268,2540.4,2540.1,3.95674453]
[1748885803100,9.46925268,2540.4,2540.1,0.02]
[1748885803429,11.38519292,2540.4,2540.1,0.02]
[1748885804141,11.38519292,2540.4,2540.1,3.95683742]
[1748885804340,11.38519292,2540.4,2540.2,3.93669506]
[1748885804641,9.46925268,2540.4,2540.2,3.93669506]
[1748885804934,0.39827432,2540.6,2540.3,3.93654292]
[1748885805223,10.25815268,2541.0,2540.4,3.93638797]
[1748885805424,10.25815268,2541.0,2540.3,4.142]
[1748885805425,9.46925268,2541.2,2540.9,3.93561336]
[1748885805632,9.46925268,2541.2,2540.8,3.93568845]
[1748885805633,0.94692527,2541.1,2541.0,3.93542124]
[1748885805810,0.7889,2541.3,2541.0,3.93542124]
[1748885805811,0.81851008,2541.3,2541.0,3.93542124]
[1748885806015,1.22123242,2541.3,2541.0,3.93542124]
[1748885806321,5.15625319,2541.3,2540.9,3.93553363]
[1748885806525,3.93538487,2541.1,2540.6,3.93600108]
[1748885806729,9.46925268,2540.9,2540.6,3.9359425]
[1748885807689,14.59595388,2541.3,2540.6,4.155]
[1748885807895,9.46925268,2541.0,2540.7,3.93583382]
[1748885808796,9.46925268,2541.0,2540.8,3.9357581]
[1748885809496,9.46925268,2541.0,2540.9,3.93561336]
[1748885809825,10.66087502,2541.3,2541.1,3.93528653]
[1748885810004,12.12043281,2541.3,2541.1,3.93528653]
[1748885810201,3.93463396,2541.6,2541.1,3.93528653]
[1748885810202,9.46925268,2541.5,2541.2,3.93514874]
[1748885810427,0.7783,2541.6,2541.5,3.93468424]
[1748885810603,0.7783,2541.6,2541.4,3.93483906]
[1748885811327,0.7783,2541.6,2541.3,3.93491532]
[1748885811534,9.46925268,2541.5,2541.1,3.93525043]
[1748885811707,1.4182146,2541.4,2541.2,3.9351447]
[1748885811895,0.7702,2542.1,2541.2,4.74929406]
[1748885812095,13.40318266,2542.0,2541.5,3.9345784]
[1748885812427,0.02961008,2541.9,2541.5,3.9345784]
[1748885813233,0.02961008,2541.9,2541.4,3.93477968]
[1748885813396,3.96368393,2541.9,2541.5,3.93459438]
[1748885813592,1.73668666,2541.8,2541.4,3.93477513]
[1748885813791,0.02961008,2541.7,2541.5,3.93460055]
[1748885814035,1.73668666,2541.8,2541.6,3.93452943]
[1748885814335,1.73668666,2541.8,2541.5,3.93461177]
[1748885814710,1.73668666,2541.8,2541.5,3.93456551]
[1748885815013,1.73668666,2541.8,2541.3,4.16]
[1748885815338,1.73668666,2541.8,2541.5,3.93461042]
[1748885815536,0.57003704,2541.7,2541.5,3.93461042]
[1748885815925,1.73668666,2541.8,2541.5,3.93461042]
[1748885816509,0.02961008,2541.7,2541.5,3.93461042]
[1748885816728,2.12366565,2541.8,2541.5,3.93461042]
[1748885817039,2.12366565,2541.8,2541.6,3.93452943]
[1748885817526,2.12366565,2541.8,2541.7,3.93437463]
[1748885817715,0.38697899,2541.8,2541.6,3.93445385]
[1748885817914,9.46925268,2541.9,2541.5,3.93460695]
[1748885818324,9.46925268,2541.9,2541.6,3.93450866]
[1748885819040,9.46925268,2541.9,2541.7,3.93427893]
[1748885819338,4.70397179,2542.1,2541.7,3.93424889]
[1748885819534,4.70397179,2542.1,2541.5,3.93463002]
[1748885819535,5.92691122,2542.0,2541.6,3.93445176]
[1748885819739,9.46925268,2541.9,2541.6,3.93445176]
[1748885820837,2.35688877,2542.0,2541.7,3.9342321]
[1748885820998,2.38649885,2542.0,2541.7,3.9342321]
[1748885821201,2.38649885,2542.0,2541.6,3.93438043]
[1748885821935,2.38649885,2542.0,2541.4,4.148]
[1748885822138,0.42311693,2542.0,2541.8,3.93408982]
[1748885822316,0.42311693,2542.0,2541.9,3.93406506]
[1748885822519,0.39350685,2542.0,2541.8,3.93414739]
[1748885822747,0.79981008,2542.1,2541.9,3.93406506]
[1748885822953,3.90573927,2542.3,2541.7,8.87765515]
[1748885823256,3.90573927,2542.3,2542.1,3.93366259]
[1748885823463,3.93534935,2542.3,2541.9,3.93401717]
[1748885823637,3.12153927,2542.3,2542.1,3.9336872]
[1748885823831,3.12153927,2542.3,2542.0,3.9338291]
[1748885824221,0.02961008,2542.2,2541.9,3.93397783]
[1748885824558,0.8287,2542.1,2541.7,8.07725929]
[1748885824858,0.02961008,2542.0,2541.7,4.143]
[1748885825156,0.02961008,2542.0,2541.9,3.93406506]
[1748885825623,9.85614994,2542.2,2541.6,3.93452374]
[1748885825824,0.02961008,2542.1,2542.0,3.93381538]
[1748885826075,3.87263927,2542.3,2542.1,3.93375555]
[1748885826365,3.87263927,2542.3,2541.8,4.9285]
[1748885826523,3.87263927,2542.3,2542.0,3.93376876]
[1748885827221,3.87263927,2542.3,2541.8,4.9285]
[1748885827442,3.87263927,2542.3,2542.1,3.93373809]
[1748885828642,3.87263927,2542.3,2542.0,3.93377681]
[1748885829487,4.25694598,2542.3,2542.1,3.93365037]
[1748885829628,3.50584598,2542.3,2542.2,3.93360081]
[1748885829829,3.50584598,2542.3,2542.1,3.93366155]
[1748885830570,3.50584598,2542.3,2542.1,3.93368869]
[1748885830957,3.12153927,2542.3,2542.2,3.93360081]
[1748885831131,3.12153927,2542.3,2542.1,3.93369387]
[1748885831337,0.02961008,2542.4,2542.2,3.93348867]
[1748885831537,0.02961008,2542.4,2542.3,3.93344609]
[1748885831764,0.8216,2542.5,2542.4,3.93329137]
[1748885831958,8.74604221,2542.8,2542.5,3.93313667]
[1748885832179,0.19604221,2542.8,2542.7,3.9328273]
[1748885832468,0.02,2542.9,2542.7,3.9328273]
[1748885832469,0.02,2542.9,2542.7,3.93278168]
[1748885832674,9.51886276,2542.9,2542.5,3.93307005]
[1748885832834,9.51886276,2542.9,2542.1,3.93375521]
[1748885832835,9.46925268,2542.6,2542.2,3.93353533]
[1748885833035,0.78401008,2542.5,2542.2,3.93350514]
[1748885833236,2.20263059,2542.5,2542.2,3.93350514]
[1748885833556,2.20263059,2542.5,2542.1,3.93368106]
[1748885833765,2.20263059,2542.5,2542.3,3.93344142]
[1748885834059,2.20263059,2542.5,2542.1,3.93368106]
[1748885834236,2.20263059,2542.5,2542.3,3.93338185]
[1748885835693,1.16718833,2542.4,2541.9,0.8178]
[1748885835891,0.02961008,2542.3,2542.2,3.93360081]
[1748885836092,0.78401008,2542.5,2542.3,3.93344609]
[1748885836260,0.78401008,2542.5,2542.3,3.93338342]
[1748885836657,0.78401008,2542.5,2542.2,3.93353072]
[1748885836980,2.20261925,2542.5,2542.2,3.93353072]
[1748885837871,2.20261925,2542.5,2542.3,3.93337413]
[1748885838072,0.55,2542.6,2542.5,3.93313667]
[1748885838384,9.87783893,2542.9,2542.3,3.93344609]
[1748885838586,0.02961008,2542.8,2542.7,3.93273849]
[1748885839302,0.02961008,2542.8,2542.5,3.93306643]
[1748885841059,10.25095268,2542.6,2542.3,3.93342664]
[1748885841260,0.9907449,2542.8,2542.5,3.93313667]
[1748885841509,0.6,2542.6,2542.5,3.93313667]
[1748885846671,0.40858625,2542.9,2542.8,3.93267264]
[1748885846894,0.02,2542.9,2542.8,3.93267264]
[1748885851683,0.02,2542.9,2542.8,9.66154503]
[1748885851899,0.02,2542.9,2542.8,9.62222197]
[1748885855408,0.02,2542.9,2542.8,17.62222197]
[1748885855770,0.02,2542.9,2542.8,17.61722197]
[1748885856707,0.02,2542.9,2542.8,13.50522197]
[1748885856908,0.02,2542.9,2542.8,17.61622197]
[1748885860836,0.02,2542.9,2542.8,17.61422197]
[1748885861357,0.02,2542.9,2542.8,13.50522197]
[1748885861639,0.02,2542.9,2542.8,18.71722197]
[1748885862739,0.02,2542.9,2542.8,17.61222197]
[1748885865144,0.02,2542.9,2542.8,13.50522197]
[1748885865567,0.02,2542.9,2542.8,12.71922197]
[1748885867254,0.02,2542.9,2542.8,16.82122197]
[1748885867552,0.02,2542.9,2542.8,22.23668841]
[1748885868089,0.02,2542.9,2542.8,17.59672197]
[1748885869066,0.02,2542.9,2542.8,22.23668841]
[1748885869285,0.02,2542.9,2542.8,13.49472197]
[1748885869434,0.02,2542.9,2542.8,18.70072197]
[1748885870048,0.02,2542.9,2542.8,17.59772197]
[1748885870678,0.02,2542.9,2542.8,13.49472197]
[1748885870863,0.02,2542.9,2542.8,17.59672197]
[1748885871960,0.02,2542.9,2542.8,13.49472197]
[1748885872334,0.02,2542.9,2542.8,16.03267264]
[1748885873567,0.02,2542.9,2542.8,16.82617264]
[1748885876386,0.02,2542.9,2542.8,17.37617264]
[1748885878173,0.02,2542.9,2542.8,13.27617264]
[1748885878370,0.02,2542.9,2542.8,18.47917264]
[1748885879704,0.02,2542.9,2542.8,18.46517264]
[1748885880138,0.02,2542.9,2542.8,13.27617264]
[1748885880320,0.02,2542.9,2542.8,18.46417264]
[1748885883221,0.02,2542.9,2542.8,18.46017264]
[1748885883565,0.02,2542.9,2542.8,13.27617264]
[1748885883731,0.02,2542.9,2542.8,18.46017264]
[1748885884351,0.02,2542.9,2542.8,18.45917264]
[1748885884526,0.02,2542.9,2542.8,13.81717264]
[1748885884734,0.02,2542.9,2542.8,17.90817264]
[1748885885469,0.02,2542.9,2542.8,18.45817264]
[1748885886414,0.02,2542.9,2542.8,18.46117264]
[1748885886804,0.02,2542.9,2542.8,18.46017264]
[1748885887562,0.02,2542.9,2542.8,13.81717264]
[1748885887762,0.02,2542.9,2542.8,12.72617264]
[1748885887969,0.02,2542.9,2542.8,17.91217264]
[1748885888791,0.02,2542.9,2542.8,13.81717264]
[1748885888995,0.02,2542.9,2542.8,17.91117264]
[1748885891352,0.02,2542.9,2542.8,18.46117264]
[1748885892705,0.02,2543.9,2542.8,18.46117264]
[1748885892706,0.02,2543.9,2543.8,11.93112666]
[1748885892908,0.02,2543.9,2543.8,17.12012666]
[1748885893257,0.02,2543.9,2543.8,22.51896097]
[1748885894566,0.02,2543.9,2543.8,23.47033504]
[1748885895296,0.02,2543.9,2543.8,18.83750073]
[1748885899504,0.02,2543.9,2543.8,13.64850073]
[1748885899675,0.02,2543.9,2543.8,18.83050073]
[1748885902474,0.02,2544.9,2544.8,3.92958189]
[1748885902719,0.02,2544.9,2544.8,16.41054008]
[1748885903815,0.02,2544.9,2544.8,12.32254008]
[1748885904177,0.02,2544.9,2544.8,17.49954008]
[1748885905017,0.02,2544.9,2544.8,18.27734008]
[1748885905182,0.02,2544.9,2544.8,28.26169257]
[1748885905539,0.7884,2545.9,2545.8,3.92803833]
[1748885905685,0.02,2545.9,2545.8,16.80565838]
[1748885905879,0.02,2545.9,2545.8,16.84982118]
[1748885906219,0.02,2545.9,2545.8,17.94682118]
[1748885907199,0.02,2545.9,2545.8,27.38117367]
[1748885907626,0.02,2545.9,2545.8,27.93117367]
[1748885907929,0.02,2545.9,2545.8,28.70867367]
[1748885911196,0.02,2546.9,2545.8,28.70867367]
[1748885911197,0.02,2546.9,2546.8,3.92649599]
[1748885911396,0.02,2546.9,2546.8,25.94003909]
[1748885912032,0.02,2546.9,2546.8,27.24333909]
[1748885912240,0.02,2547.9,2547.8,3.92495486]
[1748885912612,0.8305,2547.9,2547.8,3.92495486]
[1748885913642,0.8305,2547.9,2547.7,3.92503561]
[1748885913813,0.8305,2547.9,2547.3,8.0316993]
[1748885913994,0.8305,2547.9,2547.8,3.92495486]
[1748885914199,1.85994626,2547.9,2547.8,3.92495486]
[1748885914400,0.8172,2547.8,2547.7,3.92500516]
[1748885916851,0.8172,2547.8,2547.7,3.96425453]
[1748885917155,0.8172,2547.8,2547.7,3.92500516]
[1748885918220,0.8172,2547.8,2547.7,8.03400516]
[1748885918621,0.8172,2547.8,2547.7,3.92500516]
[1748885919933,0.02,2547.9,2547.8,3.92495486]
[1748885922862,0.8393,2547.9,2547.8,8.03095486]
[1748885923749,0.8393,2547.9,2547.8,3.92495486]
[1748885949319,0.02,2547.9,2547.8,5.07251305]
[1748885949532,0.02,2547.9,2547.8,8.40291305]
[1748885950786,0.02,2547.9,2547.8,4.31791305]
[1748885951033,0.02,2547.9,2547.8,8.01395486]
[1748885952040,0.02,2547.9,2547.8,3.92495486]
[1748885952821,4.64190011,2547.9,2547.8,3.92495486]
[1748885952998,5.44390011,2547.9,2547.8,3.92495486]
[1748885953820,0.822,2547.9,2547.8,3.92495486]
[1748885954026,0.85161008,2547.9,2547.8,3.92495486]
[1748885955445,0.822,2547.9,2547.8,3.92495486]
[1748885957049,0.02,2547.9,2547.8,4.7491989]
[1748885957221,0.02,2547.9,2547.8,4.70995086]
[1748885957622,0.02,2547.9,2547.8,12.70995086]
[1748885957843,0.02,2547.9,2547.8,13.46255086]
[1748885959325,0.02,2547.9,2547.8,18.64055086]
[1748885959759,0.02,2547.9,2547.8,13.46255086]
[1748885959943,0.02,2547.9,2547.8,17.54955086]
[1748885960548,0.02,2547.9,2547.8,17.54855086]
[1748885961219,0.02,2547.9,2547.8,17.54755086]
[1748885962238,0.02,2547.9,2547.8,13.46255086]
[1748885962443,0.02,2547.9,2547.8,17.54755086]
[1748885963515,0.02,2547.9,2547.8,13.46255086]
[1748885963730,0.02,2547.9,2547.8,16.79395086]
[1748885964051,0.02,2547.9,2547.8,12.70995086]
[1748885964354,0.02,2547.9,2547.8,17.57745086]
[1748885966253,0.02,2547.9,2547.8,17.57545086]
[1748885970185,0.02,2547.9,2547.8,13.49345086]
[1748885970392,0.02,2547.9,2547.8,18.65145086]
[1748885970744,0.02,2547.9,2547.8,13.49345086]
[1748885970945,0.02,2547.9,2547.8,18.65045086]
[1748885971586,0.02,2547.9,2547.8,13.49345086]
[1748885971793,0.02,2547.9,2547.8,18.65045086]
[1748885975947,0.02,2547.9,2547.8,13.49345086]
[1748885976247,0.02,2547.9,2547.8,18.64645086]
[1748885979204,0.02,2547.9,2547.8,17.86295086]
[1748885979400,0.02,2547.9,2547.8,12.70995086]
[1748885979591,0.02,2547.9,2547.8,16.78195086]
[1748885981105,0.02,2547.9,2547.8,12.70995086]
[1748885981308,0.02,2547.9,2547.8,15.99695486]
[1748885983871,0.02,2547.9,2547.8,11.92495486]
[1748885984211,0.02,2547.9,2547.8,15.99695486]
[1748885984373,0.02,2547.9,2547.8,16.82225486]
[1748885986908,0.02,2547.9,2547.8,11.92495486]
[1748885987078,0.02,2547.9,2547.8,17.1755331]
[1748885989789,0.02,2547.9,2547.8,13.1035331]
[1748885990106,0.02,2547.9,2547.8,15.99695486]
[1748885991207,0.02,2547.9,2547.8,11.92495486]
[1748885991385,0.02,2547.9,2547.8,15.99695486]
[1748885993748,0.02,2547.9,2547.8,11.92495486]
[1748885993949,0.02,2547.9,2547.8,15.99695486]
[1748885995759,0.02,2547.9,2547.8,11.92495486]
[1748885996047,0.02,2547.9,2547.8,15.99695486]
[1748885996546,0.02,2547.9,2547.8,11.92495486]
[1748885996852,0.02,2547.9,2547.8,15.99695486]
[1748886000474,0.7965,2547.9,2547.1,0.7876]
[1748886000791,5.41632025,2547.9,2547.8,3.92495486]
[1748886001962,0.7965,2547.9,2547.8,3.92495486]
[1748886002164,0.02,2547.9,2547.8,3.92495486]
[1748886002523,0.02,2547.9,2547.8,7.99695486]
[1748886003861,0.02,2547.9,2547.8,3.92495486]
[1748886004061,0.816,2547.9,2547.8,3.92495486]
[1748886005384,0.02,2547.9,2547.8,3.92495486]
[1748886005670,0.02,2547.9,2547.8,8.78195807]
[1748886005973,0.7934,2547.9,2547.8,7.99695486]
[1748886006873,0.7934,2547.9,2547.0,0.7737]
[1748886007026,4.61982025,2547.7,2547.1,3.92603352]
[1748886007225,0.02961008,2547.6,2547.3,3.92561775]
[1748886007451,0.02961008,2547.6,2547.2,3.9258061]
[1748886007452,4.61982025,2547.4,2547.2,3.9258061]
[1748886007657,4.61982025,2547.4,2546.7,0.35921787]
[1748886007658,0.7734,2547.2,2547.1,3.92589473]
[1748886011957,0.7734,2547.2,2546.9,3.92625219]
[1748886012288,0.7683,2546.8,2546.7,0.35921787]
[1748886012431,0.79791008,2546.8,2546.7,3.92665017]
[1748886012988,0.79791008,2546.8,2546.4,3.92702878]
[1748886013169,1.73270109,2546.8,2546.4,3.92702878]
[1748886013470,1.73270109,2546.8,2546.5,3.92695201]
[1748886013845,1.73270109,2546.8,2546.6,3.9268023]
[1748886014246,1.73270109,2546.8,2546.5,3.92687894]
[1748886015370,1.73270109,2546.8,2546.4,3.92705814]
[1748886015572,1.73270109,2546.8,2545.7,3.92819263]
[1748886015573,9.41784551,2546.5,2545.7,3.92819263]
[1748886015773,0.83411008,2546.4,2545.7,4.073]
[1748886016087,0.83411008,2546.4,2546.1,3.92746778]
[1748886016291,2.25199491,2546.4,2546.1,3.92746778]
[1748886016439,1.44749491,2546.4,2546.0,3.92765738]
[1748886016783,1.44749491,2546.4,2545.1,0.02]
[1748886016784,10.78334551,2546.2,2545.1,0.02]
[1748886016990,0.84511008,2546.1,2545.7,3.92812479]
[1748886017166,0.8155,2545.8,2545.1,0.02]
[1748886017480,0.02961008,2545.7,2545.6,3.92834695]
[1748886017680,0.84511008,2545.8,2545.7,3.92819263]
[1748886018682,0.84511008,2545.8,2545.6,3.92827947]
[1748886018885,0.84511008,2545.8,2545.6,3.92827267]
[1748886019180,1.07702557,2545.8,2545.5,3.92842229]
[1748886019380,1.07702557,2545.8,2545.6,3.92834602]
[1748886019585,1.04741549,2545.8,2545.6,3.92834602]
[1748886019756,0.8155,2545.8,2545.7,3.92819263]
[1748886020157,0.8155,2545.8,2545.2,3.92885401]
[1748886020379,0.02961008,2545.7,2545.5,3.92842223]
[1748886020754,0.02961008,2545.7,2545.4,3.9286417]
[1748886020755,0.02961008,2545.7,2545.4,3.92856812]
[1748886021089,0.02961008,2545.7,2545.5,3.92837286]
[1748886021255,0.02961008,2545.7,2545.1,0.02]
[1748886021458,1.02303109,2545.7,2545.4,3.92858929]
[1748886021787,12.47896432,2545.2,2544.1,0.41534088]
[1748886021961,0.8323,2544.7,2544.4,3.9300755]
[1748886022167,0.02961008,2544.6,2544.1,0.02]
[1748886022366,0.42620763,2544.6,2544.1,3.95055432]
[1748886022568,0.02961008,2544.6,2544.1,3.95065282]
[1748886022768,9.41784551,2544.2,2544.1,0.02]
[1748886022960,10.22064551,2544.2,2544.1,0.02]
[1748886023156,1.82486455,2544.2,2544.1,0.02]
[1748886023362,0.8028,2544.2,2544.1,0.02]
[1748886024355,0.8028,2544.2,2544.1,3.9506631]
[1748886024856,0.8028,2544.2,2544.1,0.02]
[1748886025251,0.83241008,2544.2,2544.1,0.02]
[1748886026192,0.8028,2544.2,2544.1,0.02]
[1748886026356,2.22085261,2544.2,2544.1,0.02]
[1748886026553,6.15136121,2544.2,2544.1,0.02]
[1748886026766,6.70136121,2544.2,2544.1,0.02]
[1748886027175,6.73097129,2544.2,2544.1,0.02]
[1748886028479,3.93106172,2543.9,2543.3,3.93184126]
[1748886028673,0.81579801,2543.8,2543.3,3.93184126]
[1748886028902,3.93184629,2543.4,2543.1,0.02]
[1748886029063,0.02961008,2543.3,2543.1,0.02]
[1748886029261,0.02961008,2543.5,2543.1,0.02]
[1748886029598,3.93176254,2543.4,2543.1,0.02]
[1748886029797,13.37937241,2543.3,2543.1,0.02]
[1748886030001,0.8275,2543.2,2543.1,0.02]
[1748886030203,1.3775,2543.2,2543.1,0.02]
[1748886030405,5.3095541,2543.2,2543.1,0.02]
[1748886031193,5.33916418,2543.2,2543.1,0.02]
[1748886031503,7.40159967,2543.2,2543.1,0.02]
[1748886033410,3.93273917,2542.8,2542.2,3.9334981]
[1748886033582,0.02961008,2542.7,2542.2,3.9334981]
[1748886033776,0.02961008,2542.7,2542.4,3.93319615]
[1748886034676,0.02961008,2542.7,2542.5,3.93305974]
[1748886035197,0.02961008,2542.7,2542.4,3.93322266]
[1748886035800,9.41784551,2542.5,2542.1,0.02]
[1748886035997,0.02961008,2542.4,2542.1,0.02]
[1748886036366,0.02961008,2542.4,2542.1,3.95374631]
[1748886036712,0.4149391,2542.4,2542.1,3.95374631]
[1748886036886,0.02961008,2542.4,2542.1,3.95374631]
[1748886037068,0.02961008,2542.4,2542.3,3.93344609]
[1748886037409,0.7518,2543.0,2542.9,3.93251799]
[1748886037711,0.02961008,2543.1,2542.9,3.93251799]
[1748886038071,0.02961008,2543.1,2542.8,3.9325968]
[1748886038271,0.02961008,2543.1,2542.3,0.78870298]
[1748886038272,3.96183332,2543.1,2542.5,3.9331178]
[1748886038481,3.96183332,2543.1,2542.3,0.78870298]
[1748886038482,9.41784551,2542.9,2542.3,8.0]
[1748886038806,0.02961008,2542.8,2542.4,3.93316821]
[1748886038984,9.41784551,2542.6,2542.1,0.02]
[1748886039185,0.02961008,2542.5,2542.1,3.95367647]
[1748886039420,4.48360081,2542.2,2542.1,0.02]
[1748886039621,0.02961008,2542.2,2542.1,0.02]
[1748886039821,1.44404336,2542.2,2542.1,0.02]
[1748886040125,0.7635,2542.4,2542.3,3.93344609]
[1748886040312,9.41784551,2542.6,2542.4,3.93329137]
[1748886040512,0.02961008,2542.5,2542.4,3.93329137]
[1748886040684,0.7568,2542.7,2542.5,3.93312573]
[1748886040889,0.7568,2542.7,2542.4,3.9332082]
[1748886041126,0.02961008,2542.6,2542.3,3.93340197]
[1748886041421,9.44745559,2542.6,2542.4,3.93327498]
[1748886041726,9.41784551,2542.6,2542.2,3.93348355]
[1748886042024,0.86001008,2542.5,2542.1,3.95368857]
[1748886042401,0.86001008,2542.5,2542.2,3.93358522]
[1748886042606,2.35564907,2542.5,2542.2,3.93358522]
[1748886043406,2.35564907,2542.5,2542.1,0.02]
[1748886043619,0.74562422,2542.7,2542.1,0.8254]
[1748886043938,0.02961008,2542.6,2542.1,0.8254]
[1748886044145,0.02961008,2542.6,2542.5,3.93313667]
[1748886045036,0.02961008,2542.6,2542.4,3.93321755]
[1748886046029,0.02961008,2542.6,2542.1,0.8254]
[1748886046233,0.02961008,2542.6,2542.4,3.93319005]
[1748886047039,0.02961008,2542.6,2542.5,3.93313667]
[1748886047211,0.8295,2543.1,2543.0,3.93236335]
[1748886047543,0.8295,2543.5,2543.1,3.93216591]
[1748886047716,12.79071356,2543.5,2543.0,3.93228216]
[1748886047901,9.41784551,2543.3,2542.6,0.8301]
[1748886048098,1.02639463,2543.2,2542.8,3.9325594]
[1748886048336,1.02639463,2543.2,2542.9,3.93241377]
[1748886048522,0.7937,2543.1,2542.8,3.93260557]
[1748886048731,9.44745559,2543.0,2542.7,3.93277666]
[1748886049034,0.02961008,2542.9,2542.6,3.93287008]
[1748886049211,1.4859585,2542.9,2542.3,0.8277]
[1748886049415,1.4859585,2542.9,2542.8,3.93267264]
[1748886049621,0.57961008,2543.0,2542.4,3.93329137]
[1748886049807,0.57961008,2543.0,2542.7,3.93274766]
[1748886050208,9.99745559,2543.0,2542.6,3.93289568]
[1748886050537,13.90025642,2543.0,2542.5,3.93306461]
[1748886051111,13.90025642,2543.0,2542.5,3.93313667]
[1748886051319,1.5084001,2542.9,2542.3,8.0]
[1748886051633,0.02961008,2542.8,2542.6,3.93297998]
[1748886052958,0.02961008,2542.8,2542.7,3.9328273]
[1748886053307,1.18374455,2543.1,2542.9,3.93246394]
[1748886053616,1.18374455,2543.1,2543.0,3.93236335]
[1748886053832,2.45218201,2543.1,2542.6,0.7874]
[1748886054152,9.41784551,2543.0,2542.6,3.93286024]
[1748886054940,9.41784551,2543.0,2542.7,3.93276877]
[1748886055348,0.02961008,2542.9,2542.8,3.9326674]
[1748886056142,0.02961008,2542.9,2542.7,3.93276133]
[1748886056650,0.02961008,2542.9,2542.8,3.93267264]
[1748886058550,0.02961008,2542.9,2542.7,3.9328273]
[1748886058751,0.02961008,2542.9,2542.8,3.93267264]
[1748886059645,0.02961008,2543.0,2542.8,3.93267264]
[1748886059854,0.8792736,2543.0,2542.8,3.93267264]
[1748886060147,0.02961008,2543.0,2542.9,3.93251799]
[1748886060315,0.02961008,2543.0,2542.8,3.93259465]
[1748886060644,9.44745559,2543.0,2542.6,3.93286427]
[1748886060831,9.41784551,2543.0,2542.2,0.7549]
[1748886061056,0.8268,2542.6,2542.1,0.02]
[1748886061252,0.02961008,2542.5,2542.1,0.02]
[1748886061546,0.02961008,2542.5,2542.2,3.93353442]
[1748886061746,0.02961008,2542.5,2542.3,3.93342259]
[1748886062266,0.02961008,2542.5,2542.4,3.93329137]
[1748886062460,0.02961008,2542.5,2542.4,3.93319933]
[1748886062960,0.02961008,2542.5,2542.2,3.93351072]
[1748886063122,1.45032483,2542.5,2542.1,0.02]
[1748886063568,0.55,2542.4,2542.1,3.95365637]
[1748886063770,0.02961008,2542.3,2542.1,3.95365637]
[1748886064282,0.02961008,2542.3,2542.1,0.02]
[1748886064488,0.02961008,2542.3,2542.1,3.95368371]
[1748886064773,1.3085,2542.2,2542.1,0.02]
[1748886065137,1.33811008,2542.2,2542.1,0.02]
[1748886067166,1.33811008,2542.2,2542.1,3.95375555]
[1748886067363,0.7585,2542.2,2542.1,3.95375555]
[1748886067580,0.7832,2542.4,2542.2,3.93360081]
[1748886067740,0.02961008,2542.3,2542.1,3.95370968]
[1748886067940,9.44745559,2542.3,2542.1,0.02]
[1748886068144,1.02306556,2542.2,2542.1,0.02]
[1748886068358,1.05267564,2542.2,2542.1,0.02]
[1748886068885,1.60267564,2542.2,2542.1,0.02]
[1748886069655,2.38587564,2542.2,2542.1,0.02]
[1748886071489,2.38587564,2542.2,2542.1,3.95375555]
[1748886071664,2.38587564,2542.2,2542.1,0.02]
[1748886073152,6.31947645,2542.2,2542.1,0.02]
[1748886073885,0.55,2541.8,2541.5,3.93462486]
[1748886074093,0.02961008,2541.7,2541.6,3.93452491]
[1748886074476,0.02961008,2541.7,2541.4,3.93482108]
[1748886074664,0.8224,2541.5,2541.4,3.93482108]
[1748886074848,0.85201008,2541.5,2541.4,3.93482108]
[1748886075054,0.02961008,2541.5,2541.4,3.93482108]
[1748886075467,1.0955085,2541.5,2541.4,3.93482108]
[1748886076575,1.0955085,2541.5,2541.1,11.95528354]
[1748886076576,0.55,2541.4,2541.1,0.02]
[1748886076879,0.02961008,2541.3,2541.2,3.93506263]
[1748886077280,1.61589842,2541.5,2541.3,3.93490994]
[1748886077578,1.14228726,2541.4,2541.3,3.93490994]
[1748886077781,10.35697413,2541.6,2541.5,3.93468424]
[1748886080481,14.43997413,2541.6,2541.5,3.93468424]
[1748886081366,10.35697413,2541.6,2541.5,3.93468424]
[1748886081571,5.02212862,2541.6,2541.5,3.93468424]
[1748886081772,5.0517387,2541.6,2541.5,3.93468424]
[1748886081958,5.74725257,2541.6,2541.5,3.93468424]